Workbook

Sheet INFORMATION (hidden)
A1: Special Rates 2023 Sch S-2.Z25.XLSM
A2: 01/05/2023
A3: CENTRAL VALLEY PROJECT
A4: SCHEDULE OF M&I UNPAID CONSTRUCTION COSTS BY COMPONENT AND/OR FACILITY
A5: AS OF SEPTEMBER 30, 2021
A6: 2023 SPECIAL WATER RATES
C8: SOURCE DATA:
A52: 10/19/2022 | B52: jm | C52: Updated file names, title, headings, and date
C53: Updated & ran macro
A55: 10/24/2022 | B55: jm | C55: Epdated footnotes tab
A57: 01/05/23 | B57: KJ | C57: Reviewed

Sheet MACRO_INPUT (hidden)
A1: =INFORMATION!A1 -> Special Rates 2023 Sch S-2.Z25.XLSM
A2: =INFORMATION!$A$2 -> 01/05/2023
A4: =OUTPUT!A5 -> SCHEDULE OF M&I UNPAID CONSTRUCTION COSTS BY COMPONENT AND/OR FACILITY
A5: =OUTPUT!A6 -> AS OF SEPTEMBER 30, 2021
A6: =OUTPUT!A7 -> 2023 SPECIAL WATER RATES
B7: RESERVED FOR MACRO INPUT
D9: 2020
B10: Schedule S-6 | D10: Projected Deliveries | G10: Schedule A-5 | M10: Schedule A-4 | T10: Schedule A-2B | W10: Schedule A-7 | Z10: Schedule A-13
G11: Capital Costs | J11: Total | K11: PUE BOR | L11: PUE DOE | M11: Other Cost and Miscellaneous Revenue | T11: Capital Repayment | W11: Jones PP | Z11: PW Interest Rate
A16: Total Storage | D16: 331768.7143 | M16: Other Costs | T16: Grand Total | U16: 140056688 | W16: CVP Sub-Total (A/F) | X16: 4956444 | Z16: 0.02375460811
A17: Total Conveyance - all other contractors | D17: 172696.7143 | G17: Storage 1/ | W17: Delta-Mendota Exchange | X17: 2496684.902
A18: Total Dos Amigos Convey. Pumping | D18: 12196.42857 | H18: San Felipe Unit Contractors | J18: 10103901.89 | K18: 0 | L18: 0 | N18: Deferred Interest Capitalized | R18: 21277763
A19: Total O'Neill Convey. Pumping | D19: 98940.57143 | H19: All Other Contractors | J19: 40454308.98 | K19: 548627.8606 | L19: 533375.2892 | N19: Programmatic EIS Capitalized 2/ | R19: 1591067.959
A20: CVP-Subtotal-Jones PP-Conv Pumping | D20: 106845 | I20: Total Storage | J20: 50558210.87 | K20: 548627.8606 | L20: 533375.2892 | N20: All others | R20: 7378781.395
A21: Delta-Mendota Exc. -Conveyance PP Tracy | D21: 46430.98482 | O21: Total Other Costs | R21: 30247612.35
A22: Total Jones PP - conveyance Pumping | D22: 153275.9848 | G22: Conveyance
H23: Contra Costa WD 3/ | J23: 0 | M23: San Felipe Unit Contractors | R23: 809388.11
H24: All Other Contractors | J24: 26600102.02 | M24: All Other Contractors | R24: 379393.76
I25: Total Conveyance | J25: 26600102.02 | M25: All Other Contractors | R25: 288911.73
M26: O'Neill Pump-Generator Plant | R26: 138321.73
G27: Conveyance Pumping | M27: Bella Vista WD (Wintu PP) | R27: 60913.26
B28: Schedule S-6 | D28: 2020 | H28: Dos Amigos Pumping Plant | J28: 821360.684 | K28: 274432.2546 | L28: 266802.6793 | M28: Dos Amigos PP | R28: 4604.81
D29: Projected Deliveries | F29: Direct Pumping | H29: O'Neill Pump-Generator Plant | J29: 3436478.792 | K29: 855429.1677 | L29: 831647.119 | M29: Westlands WD Relifts | R29: 3501.54
A30: Black Butte D&R | H30: Jones Pumping Plant | J30: 15108319.43 | K30: 5437365.598 | L30: 5286199.73 | M30: All Other Contractors | R30: 18027.08
B31: County of Colusa | D31: 6.571428571 | M31: Gianelli, WR PGP | R31: 115667.27
B32: Elk Creek CSD | D32: 14 | M32: Pleasant Valley PP (City of Coalinga) | R32: 3511.24
B33: U. S. Forest Service - BB | D33: 9.857142857 | I33: Total Conveyance Pumping | J33: 19366158.9 | K33: 6567227.021 | L33: 6384649.528 | M33: Gianelli, WR PGP | R33: 15649.35
B34: Whitney Const Inc. | D34: 4 | M34: Shasta PP (City of Shasta Lake) | R34: 569188.0861
D35: 34.42857143 | G35: Direct Pumping
H36: Bella Vista WD (Wintu PP) | J36: 902585.8375 | K36: 206588.8639 | L36: 200845.4236
H37: Colusa County WD | J37: 36408.49257 | K37: 2142.483199 | L37: 2082.919367
A38: Clear Creek Unit | H38: Contra Costa Pumping Plants | J38: 4974012.629 | K38: 2522064.661 | L38: 2451947.968
B39: Clear Creek CSD | D39: 1651.142857 | H39: Kanawha WD | J39: 1558.779776 | K39: 36.78117022 | L39: 35.75860563
H40: Pleasant Valley Canalside Relifts | J40: 49429.81448 | K40: 11922.70817 | L40: 11591.24131
H41: Pleasant Valley Pumping Plant | J41: 206069.19 | K41: 152.3528045 | L41: 148.1171974
A42: Contra Costa Canal | H42: San Benito County WD
B43: Contra Costa WD | D43: 80723.71429 | F43: 80723.71429 | I43: Pacheco Pumping Plant | J43: 224076.6822 | K43: 113617.7014 | L43: 110458.9808
F44: 0 | I44: Gianelli, William R. Pump-Generator Plant 1/ | J44: 379445.3046 | K44: 171345.4409 | L44: 166581.8137
H45: San Luis WD Canalside Relifts & Turnouts | J45: 73891.36987 | K45: 37466.49368 | L45: 36424.87619
A46: Cow Creek Unit | H46: Santa Clara Valley WD
B47: Bella Vista WD | D47: 3730.285714 | F47: 3730.285714 | I47: Coyote Pumping Plant | J47: 1356563.247 | K47: 687843.0917 | L47: 668720.1549
I48: Pacheco Pumping Plant | J48: 4713216.438 | K48: 2389828.395 | L48: 2323388.043
I49: Gianelli, William R. Pump-Generator Plant 1/ | J49: 7981221.612 | K49: 3604070.414 | L49: 3503872.547
A50: Cross Valley Canal | H50: Shasta Pumping Plant | J50: 585576.7661 | K50: 137625.4568 | L50: 133799.2893
B51: County of Fresno | D51: 86 | F51: 86 | H51: State-Delta Pumping Plant (Cross Valley Canal) | J51: 15079.58 | K51: 7646.075442 | L51: 7433.504553
B52: County of Tulare | D52: 192 | F52: 192 | H52: Westlands WD Canalside Relift PP | J52: 787112.8242 | K52: 43459.06906 | L52: 42250.85015
D53: 278 | F53: 278 | I53: Total Direct Pumping | J53: 22286248.57 | K53: 9935809.989 | L53: 9659581.488
A56: Delta-Mendota Canal | G56: Other Costs 4/ | J56: 7378781.395
B57: Byron Bethany ID | D57: 884.2857143
B58: City of Tracy | D58: 6594.571429
B59: Del Puerto WD | D59: 3 | H59: Total | J59: 126189501.8 | K59: 17051664.87 | L59: 16577606.31
B60: Department of Veterans Affairs | D60: 367.1428571
B61: Panoche WD - DMC | D61: 23.42857143
B62: San Luis WD - DMC | D62: 32
D63: 7904.428571
A67: Folsom D&R
B68: City of Folsom | D68: 3306
B69: City of Roseville | D69: 22126.57143
B70: El Dorado ID - FD&R | D70: 3913
B71: Placer County WA | D71: 5000
B72: Sacramento County WA | D72: 3600.714286
B73: San Juan WD | D73: 175.7142857
D74: 38122
A77: Folsom-South Canal
B78: East Bay MUD | D78: 6645.428571
B79: Sacramento County WA - FSC | D79: 4286
B80: Sacramento MUD | D80: 4286
D81: 15217.42857
A84: Friant Dam
B85: County of Madera | D85: 69.57142857
B86: Fresno County WW #18 | D86: 100.5714286
D87: 170.1428571
A90: Friant-Kern Canal
B91: Arvin-Edison WSD | D91: 425.4285714
B92: City of Fresno | D92: 38550.85714
B93: City of Lindsay | D93: 1535
B94: City of Orange Cove | D94: 1100.857143
B95: Delano-Earlimart ID | D95: 259.7142857
B96: Lindsay-Strathmore ID | D96: 584.5714286
B97: Shafter-Wasco ID | D97: 108.8571429
B98: Terra Bella ID | D98: 1345.142857
D99: 43910.42857
A102: New Melones D & R
B103: Stockton-East WD | D103: 24507.14286
A107: Sacramento River
B108: City of Redding - SR | D108: 2681
B109: City of W. Sacramento | D109: 5797.857143
B110: Lake California P.O.A. | D110: 185.7142857
B111: Riverview Golf & CC | D111: 20.57142857
D112: 8685.142857
A115: San Felipe Unit
B116: San Benito County WD | D116: 5210.142857 | F116: 5210.142857
B117: Santa Clara Valley WD | D117: 81377 | F117: 81377
D118: 86587.14286 | F118: 86587.14286
A121: San Luis Canal - Fresno
B122: City of Avenal | D122: 2300.571429
B123: City of Coalinga | D123: 5618.285714 | F123: 5618.285714
B124: City of Huron | D124: 1033.428571
B125: State of CA | D125: 1.857142857
B126: Westlands WD | D126: 2797 | F126: 2797
D127: 11751.14286 | F127: 8415.285714
A130: San Luis Canal - Tracy
B131: Pacheco WD | D131: 11
B132: Panoche WD | D132: 136.5714286
B133: San Luis WD 2/ | D133: 454.7142857 | F133: 454.7142857
D134: 602.2857143 | F134: 454.7142857
A137: Shasta D&R
B138: Centerville CSD | D138: 527.5714286
B139: Mountain Gate CSD | D139: 464.7142857
B140: Shasta CWA | D140: 97.71428571
D141: 1090
A145: Spring Creek Conduit
B146: City of Redding - SCC | D146: 5136.285714
B147: Shasta CWA - SCC | D147: 73.14285714
B148: Shasta CSD | D148: 252
D149: 5461.428571
A152: Tehama-Colusa Canal
B153: Colusa County WD | D153: 129.2857143 | F153: 129.2857143
B154: Kanawha WD | D154: 26.85714286 | F154: 26.85714286
D155: 156.1428571 | F155: 156.1428571
A158: Toyon Pipeline
B159: City of Redding - TP | D159: 17.42857143
B160: City of Shasta Lake | D160: 1167.857143 | F160: 1167.857143
B161: U.S. Forest Service | D161: 1
D162: 1186.285714 | F162: 1167.857143
D165: 331768.7143 | F165: 181513.1429
A168: Delta-Mendota Exchange | D168: 46430.98482
D170: 378199.6991 | F170: 181513.1429

Sheet OUTPUT
A2: =INFORMATION!A1 -> Special Rates 2023 Sch S-2.Z25.XLSM
A3: =INFORMATION!$A$2 -> 01/05/2023
A4: =INFORMATION!A3 -> CENTRAL VALLEY PROJECT
A5: =INFORMATION!A4 -> SCHEDULE OF M&I UNPAID CONSTRUCTION COSTS BY COMPONENT AND/OR FACILITY
A6: =INFORMATION!A5 -> AS OF SEPTEMBER 30, 2021
A7: =INFORMATION!A6 -> 2023 SPECIAL WATER RATES
A8: Category | B8: A) Component/Facility | C8: Related Footnotes | D8: B) Total Construction at 9/30/2021 <Sch A-4> | E8: C) Ratio of Total <B/$147,204,054> | F8: D) Cumulative Construction Repayment at 9/30/2021 1/ <C*$139,277,543> | G8: E) Net Unpaid Construction at 9/30/2021 (B-D) | H8: F) Unpaid Construction Annualized Costs 8 Remaining Years E* (E/8) | I8: G) Annual Interest @ 0.023755 2/ | J8: H) FY 2023 Projected Deliveries <Sch S-6> | K8: I) Unpaid Construction Cost Per Acre Foot Construction Only (F/H) | L8: J) Unpaid Construction Cost Per Acre Foot Interest (G/H) | M8: K) Unpaid Construction Cost Per Acre Foot Total (I+J) | Q8: 0.02375460811
A9: Storage | B9: San Felipe Unit | C9: - | D9: =MACRO_INPUT!J18-MACRO_INPUT!R23 -> 9294513.78 | E9: =D9/$D$51 -> 0.06314033831 | F9: =ROUND((+MACRO_INPUT!$U$16-779145)*E9,2) -> 8794031.18 | G9: =D9-F9 -> 500482.6 | H9: =(G9/8) -> 62560.325 | I9: =G9*$Q$8 -> 11888.76803 | J9: =MACRO_INPUT!D118 -> 86587.14286 | K9: =ROUND(H9/J9,2) -> 0.72 | L9: =ROUND(I9/J9,2) -> 0.14 | M9: =K9+L9 -> 0.86
A10: Storage | B10: All Other Contractors | C10: - | D10: =MACRO_INPUT!J19-MACRO_INPUT!R24 -> 40074915.22 | E10: =D10/$D$51 -> 0.2722405674 | F10: =ROUND((+MACRO_INPUT!$U$16-779145)*E10,2) -> 37916997.33 | G10: =D10-F10 -> 2157917.89 | H10: 269739.7362 | I10: =G10*$Q$8 -> 51260.49381 | J10: =MACRO_INPUT!D16-J9 -> 245181.5714 | K10: =ROUND(H10/J10,2) -> 1.1 | L10: =ROUND(I10/J10,2) -> 0.21 | M10: =K10+L10 -> 1.31
A11: Total | B11: Total Storage | C11: - | D11: =SUM(D9:D10) -> 49369429 | E11: 0.3353809057 | F11: 46711028.51 | G11: 2658400.49 | H11: 332300.0612 | I11: =G11*$Q$8 -> 63149.26183 | J11: - | K11: - | L11: - | M11: -
A12: Conveyance | B12: Contra Costa Canal System | C12: 3/ | D12: =+MACRO_INPUT!J23 -> 0 | E12: =ROUND(D12/$D$51,8) -> 0 | F12: =ROUND((+MACRO_INPUT!$U$16-779145)*E12,2) -> 0 | G12: =D12-F12 -> 0 | H12: 0 | I12: 0 | J12: - | K12: 0 | L12: 0 | M12: =K12+L12 -> 0
A13: Conveyance | B13: All Other Contractors | C13: - | D13: =+MACRO_INPUT!J24-MACRO_INPUT!R25 -> 26311190.29 | E13: =D13/$D$51 -> 0.1787395764 | F13: =ROUND((+MACRO_INPUT!$U$16-779145)*E13,2) -> 24894409.04 | G13: =D13-F13 -> 1416781.25 | H13: 177097.6562 | I13: 33655.08337 | J13: =MACRO_INPUT!D17 -> 172696.7143 | K13: =ROUND(H13/J13,2) -> 1.03 | L13: =ROUND(I13/J13,2) -> 0.19 | M13: =K13+L13 -> 1.22
A14: Total | B14: Total Conveyance | C14: - | D14: =SUM(D12:D13) -> 26311190.29 | E14: =SUM(E12:E13) -> 0.1787395764 | F14: =SUM(F12:F13) -> 24894409.04 | G14: =SUM(G12:G13) -> 1416781.25 | H14: 177097.6562 | I14: 33655.08337 | J14: - | K14: - | L14: - | M14: -
A15: Conveyance Pumping | B15: Dos Amigos Pumping Plant, Capital only | C15: 4/ | D15: =MACRO_INPUT!J28-MACRO_INPUT!K28-MACRO_INPUT!L28-MACRO_INPUT!R28 -> 275520.94 | E15: =D15/$D$51 -> 0.001871693966 | F15: =ROUND((+MACRO_INPUT!$U$16-779145)*E15,2) -> 260684.94 | G15: =D15-F15 -> 14836 | H15: 1854.5 | I15: 352.4233659 | J15: =MACRO_INPUT!D18-MACRO_INPUT!D53 -> 11918.42857 | K15: =ROUND(H15/J15,2) -> 0.16 | L15: =ROUND(I15/J15,2) -> 0.03 | M15: =K15+L15 -> 0.19
A16: Conveyance Pumping | B16: Dos Amigos Pumping Plant, PUE only | C16: - | D16: =+MACRO_INPUT!K28+MACRO_INPUT!L28 -> 541234.934 | E16: =D16/$D$51 -> 0.003676766493 | F16: =ROUND((+MACRO_INPUT!$U$16-779145)*E16,2) -> 512091 | G16: =D16-F16 -> 29143.93396 | H16: 3642.991745 | I16: 692.3027299 | J16: =MACRO_INPUT!D18 -> 12196.42857 | K16: =ROUND(H16/J16,2) -> 0.3 | L16: =ROUND(I16/J16,2) -> 0.06 | M16: =K16+L16 -> 0.36
A17: Total | B17: Total Dos Amigos Pumping Plant | C17: - | D17: - | E17: - | F17: - | G17: - | H17: 0 | I17: 0 | J17: - | K17: =SUM(K15:K16) -> 0.46 | L17: =SUM(L15:L16) -> 0.09 | M17: =SUM(M15:M16) -> 0.55
A18: Conveyance Pumping | B18: O'Neill P-Generator/Pumping Plant, Capital only | C18: - | D18: =MACRO_INPUT!J29-MACRO_INPUT!K29-MACRO_INPUT!L29-MACRO_INPUT!R26 -> 1611080.775 | E18: =D18/$D$51 -> 0.01094454079 | F18: =ROUND((+MACRO_INPUT!$U$16-779145)*E18,2) -> 1524328.75 | G18: =D18-F18 -> 86752.025 | H18: 10844.00312 | I18: 2060.760357 | J18: =MACRO_INPUT!D19 -> 98940.57143 | K18: =ROUND(H18/J18,2) -> 0.11 | L18: =ROUND(I18/J18,2) -> 0.02 | M18: =K18+L18 -> 0.13
A19: Conveyance Pumping | B19: O'Neill P-Generator/Pumping Plant, PUE only | C19: - | D19: =MACRO_INPUT!K29+MACRO_INPUT!L29 -> 1687076.287 | E19: =D19/$D$51 -> 0.01146080043 | F19: =ROUND((+MACRO_INPUT!$U$16-779145)*E19,2) -> 1596232.12 | G19: =D19-F19 -> 90844.16673 | H19: 11355.52084 | I19: 2157.96758 | J19: =J18 -> 98940.57143 | K19: =ROUND(H19/J19,2) -> 0.11 | L19: =ROUND(I19/J19,2) -> 0.02 | M19: =K19+L19 -> 0.13
A20: Total | B20: Total O'Neill P-Generator/Pumping Plant | C20: - | D20: - | E20: - | F20: - | G20: - | H20: 0 | I20: 0 | J20: - | K20: =SUM(K18:K19) -> 0.22 | L20: =SUM(L18:L19) -> 0.04 | M20: =SUM(M18:M19) -> 0.26
A21: Conveyance Pumping | B21: Jones Pumping Plant, Friant Kern/Madera, Capital only | C21: 5/, 6/ | D21: =+Footnotes!D29 -> 1468825.98 | E21: =D21/$D$51 -> 0.009978162545 | F21: =ROUND((+MACRO_INPUT!$U$16-779145)*E21,2) -> 1389733.96 | G21: =D21-F21 -> 79092.01962 | H21: 9886.502453 | I21: 1878.799931 | J21: =MACRO_INPUT!D87+MACRO_INPUT!D99 -> 44080.57143 | K21: =ROUND(H21/J21,2) -> 0.22 | L21: =ROUND(I21/J21,2) -> 0.04 | M21: =K21+L21 -> 0.26
A22: Conveyance Pumping | B22: Jones Pumping Plant, Friant Kern/Madera, PUE only | C22: 5/, 6/ | D22: =+Footnotes!G29 -> 3592231.397 | E22: =D22/$D$51 -> 0.0244030738 | F22: =ROUND((+MACRO_INPUT!$U$16-779145)*E22,2) -> 3398800.16 | G22: =D22-F22 -> 193431.2373 | H22: 24178.90467 | I22: 4594.883239 | J22: =J21 -> 44080.57143 | K22: =ROUND(H22/J22,2) -> 0.55 | L22: =ROUND(I22/J22,2) -> 0.1 | M22: =K22+L22 -> 0.65
A23: Total | B23: Total Friant Kern/Madera | C23: - | D23: - | E23: - | F23: - | G23: - | H23: 0 | I23: 0 | J23: - | K23: =SUM(K21:K22) -> 0.77 | L23: =SUM(L21:L22) -> 0.14 | M23: =SUM(M21:M22) -> 0.91
A24: Conveyance Pumping | B24: Jones Pumping Plant, All Other Contractors, Capital only | C24: 5/, 7/ | D24: =+Footnotes!D30-MACRO_INPUT!R30 -> 2897901.04 | E24: =D24/$D$51 -> 0.01968628552 | F24: =ROUND((+MACRO_INPUT!$U$16-779145)*E24,2) -> 2741857.48 | G24: =D24-F24 -> 156043.5604 | H24: 19505.44505 | I24: 3706.753625 | J24: =MACRO_INPUT!D20 -> 106845 | K24: =ROUND(H24/J24,2) -> 0.18 | L24: =ROUND(I24/J24,2) -> 0.03 | M24: =K24+L24 -> 0.21
A25: Conveyance Pumping | B25: Jones Pumping Plant, All Other Contractors, PUE only | C25: 5/, 7/ | D25: =+Footnotes!G30 -> 7131333.93 | E25: =D25/$D$51 -> 0.04844522776 | F25: =ROUND((+MACRO_INPUT!$U$16-779145)*E25,2) -> 6747332.29 | G25: =D25-F25 -> 384001.6405 | H25: 48000.20506 | I25: 9121.808483 | J25: =J24 -> 106845 | K25: =ROUND(H25/J25,2) -> 0.45 | L25: =ROUND(I25/J25,2) -> 0.09 | M25: =K25+L25 -> 0.54
A26: Total | B26: Total All Other Contractors | C26: - | D26: - | E26: - | F26: - | G26: - | H26: 0 | I26: 0 | J26: - | K26: =SUM(K24:K25) -> 0.63 | L26: =SUM(L24:L25) -> 0.12 | M26: =SUM(M24:M25) -> 0.75
A27: Total | B27: Total Conveyance Pumping | C27: - | D27: =SUM(D15:D26) -> 19205205.28 | E27: 0.1304665513 | F27: 18171060.7 | G27: 1034144.583 | H27: 129268.0729 | I27: 24565.69931 | J27: - | K27: - | L27: - | M27: -
A28: Direct Pumping | B28: Bella Vista WD (Wintu PP) | C28: - | D28: =+MACRO_INPUT!J36-MACRO_INPUT!R27 -> 841672.5775 | E28: =D28/$D$51 -> 0.005717726882 | F28: =ROUND((+MACRO_INPUT!$U$16-779145)*E28,2) -> 796350.95 | G28: =D28-F28 -> 45321.6275 | H28: 5665.203438 | I28: 1076.5975 | J28: =+MACRO_INPUT!F47 -> 3730.285714 | K28: =ROUND(H28/J28,2) -> 1.52 | L28: =ROUND(I28/J28,2) -> 0.29 | M28: =K28+L28 -> 1.81
A29: Direct Pumping | B29: Colusa County WD Relift PP | C29: - | D29: =+MACRO_INPUT!J37 -> 36408.49257 | E29: 0.0002473334907 | F29: =ROUND((+MACRO_INPUT!$U$16-779145)*E29,2) -> 34448 | G29: 1960.492566 | H29: 245.0615708 | I29: 46.57073261 | J29: =+MACRO_INPUT!F153 -> 129.2857143 | K29: 1.9 | L29: 0.36 | M29: 2.26
A30: Direct Pumping | B30: Contra Costa PP (Contra Costa WD) | C30: - | D30: =+MACRO_INPUT!J38 -> 4974012.629 | E30: 0.03378991603 | F30: =ROUND((+MACRO_INPUT!$U$16-779145)*E30,2) -> 4706176.48 | G30: 267836.149 | H30: 33479.51862 | I30: 6362.342756 | J30: =MACRO_INPUT!F43 -> 80723.71429 | K30: 0.41 | L30: 0.08 | M30: 0.49
A31: Direct Pumping | B31: Kanawha WD | C31: - | D31: =+MACRO_INPUT!J39 -> 1558.779776 | E31: 1.058924487e-05 | F31: =ROUND((+MACRO_INPUT!$U$16-779145)*E31,2) -> 1474.84 | G31: 83.93977584 | H31: =(G31/8) -> 10.49247198 | I31: 1.99395648 | J31: =+MACRO_INPUT!F154 -> 26.85714286 | K31: =ROUND(H31/J31,2) -> 0.39 | L31: 0.07 | M31: 0.46
A32: Direct Pumping | B32: Pleasant Valley PP (City of Coalinga) | C32: - | D32: =+MACRO_INPUT!J40 -> 49429.81448 | E32: 0.0003357911218 | F32: =ROUND((+MACRO_INPUT!$U$16-779145)*E32,2) -> 46768.16 | G32: 2661.654482 | H32: =(G32/8) -> 332.7068103 | I32: 63.22655915 | J32: =MACRO_INPUT!F123 -> 5618.285714 | K32: 0.06 | L32: 0.01 | M32: 0.07
A33: Direct Pumping | B33: Pleasant Valley WD Canalside Relift PP (City of Coalinga) | C33: - | D33: =+MACRO_INPUT!J41-MACRO_INPUT!R32 -> 202557.95 | E33: 0.001376035131 | F33: =ROUND((+MACRO_INPUT!$U$16-779145)*E33,2) -> 191650.79 | G33: 10907.16 | H33: 1363.395 | I33: 259.0953114 | J33: =J32 -> 5618.285714 | K33: 0.24 | L33: 0.05 | M33: 0.29
A34: Direct Pumping | B34: San Benito County WD, Pacheco PP | C34: - | D34: =+MACRO_INPUT!J43 -> 224076.6822 | E34: 0.001522218145 | F34: =ROUND((+MACRO_INPUT!$U$16-779145)*E34,2) -> 212010.8 | G34: 12065.88224 | H34: 1508.23528 | I34: 286.6203041 | J34: - | K34: - | L34: - | M34: -
A35: Direct Pumping | B35: San Benito County WD, Gianelli, WR PGP | C35: - | D35: =+MACRO_INPUT!J44-MACRO_INPUT!R33 -> 363795.9546 | E35: 0.002471371843 | F35: =ROUND((+MACRO_INPUT!$U$16-779145)*E35,2) -> 344206.6 | G35: 19589.35464 | H35: 2448.66933 | I35: 465.3374427 | J35: - | K35: - | L35: - | M35: -
A36: Total | B36: Total San Benito County WD | C36: - | D36: =SUM(D34:D35) -> 587872.6369 | E36: 0.003993589988 | F36: 556217.4 | G36: 31655.23688 | H36: 3956.90461 | I36: 751.9577468 | J36: =MACRO_INPUT!F116 -> 5210.142857 | K36: =ROUND(H36/J36,2) -> 0.76 | L36: =ROUND(I36/J36,2) -> 0.14 | M36: =K36+L36 -> 0.9
A37: Direct Pumping | B37: San Luis WD Canalside Relift PP | C37: - | D37: =+MACRO_INPUT!J45 -> 73891.36987 | E37: =D37/$D$51 -> 0.0005019655898 | F37: =ROUND((+MACRO_INPUT!$U$16-779145)*E37,2) -> 69912.53 | G37: =D37-F37 -> 3978.839871 | H37: 497.3549839 | I37: 94.51578188 | J37: =MACRO_INPUT!F133 -> 454.7142857 | K37: =ROUND(H37/J37,2) -> 1.09 | L37: =ROUND(I37/J37,2) -> 0.21 | M37: =K37+L37 -> 1.3
A38: Direct Pumping | B38: Santa Clara Valley WD, Coyote PP | C38: - | D38: =+MACRO_INPUT!J47 -> 1356563.247 | E38: =D38/$D$51 -> 0.009215529113 | F38: =ROUND((+MACRO_INPUT!$U$16-779145)*E38,2) -> 1283516.25 | G38: =D38-F38 -> 73046.99661 | H38: 9130.874576 | I38: 1735.202778 | J38: - | K38: - | L38: - | M38: -
A39: Direct Pumping | B39: Santa Clara Valley WD, Pacheco PP | C39: - | D39: =+MACRO_INPUT!J48 -> 4713216.438 | E39: =D39/$D$51 -> 0.03201825157 | F39: =ROUND((+MACRO_INPUT!$U$16-779145)*E39,2) -> 4459423.41 | G39: =D39-F39 -> 253793.0282 | H39: 31724.12852 | I39: 6028.753925 | J39: - | K39: - | L39: - | M39: -
A40: Direct Pumping | B40: Santa Clara Valley WD, Gianelli, WR PGP | C40: - | D40: =+MACRO_INPUT!J49-MACRO_INPUT!R31 -> 7865554.342 | E40: =D40/$D$51 -> 0.05343300079 | F40: =ROUND((+MACRO_INPUT!$U$16-779145)*E40,2) -> 7442017.06 | G40: =D40-F40 -> 423537.2816 | H40: 52942.16019 | I40: 10060.96214 | J40: - | K40: - | L40: - | M40: -
A41: Total | B41: Total Santa Clara WD | C41: - | D41: =SUM(D38:D40) -> 13935334.03 | E41: =SUM(E38:E40) -> 0.09466678147 | F41: =SUM(F38:F40) -> 13184956.72 | G41: 750377.3063 | H41: 93797.16329 | I41: 17824.91885 | J41: =MACRO_INPUT!F117 -> 81377 | K41: =ROUND(H41/J41,2) -> 1.15 | L41: =ROUND(I41/J41,2) -> 0.22 | M41: =K41+L41 -> 1.37
A42: Direct Pumping | B42: Shasta Pumping Plant (City of Shasta Lake) | C42: - | D42: =MACRO_INPUT!R34 -> 569188.0861 | E42: =D42/$D$51 -> 0.003866660395 | F42: =ROUND((+MACRO_INPUT!$U$16-779145)*E42,2) -> 538538.96 | G42: =D42-F42 -> 30649.12611 | H42: 3831.140764 | I42: 728.0579798 | J42: =MACRO_INPUT!F160 -> 1167.857143 | K42: =ROUND(H42/J42,2) -> 3.28 | L42: =ROUND(I42/J42,2) -> 0.62 | M42: =K42+L42 -> 3.9
A43: Direct Pumping | B43: State Delta PP (Cross Valley Canal) | C43: - | D43: =+MACRO_INPUT!J51 -> 15079.58 | E43: =D43/$D$51 -> 0.0001024399775 | F43: =ROUND((+MACRO_INPUT!$U$16-779145)*E43,2) -> 14267.59 | G43: =D43-F43 -> 811.989995 | H43: 101.4987494 | I43: 19.28850412 | J43: =MACRO_INPUT!F53 -> 278 | K43: =ROUND(H43/J43,2) -> 0.37 | L43: =ROUND(I43/J43,2) -> 0.07 | M43: =K43+L43 -> 0.44
A44: Direct Pumping | B44: Westlands WD Relifts | C44: - | D44: =+MACRO_INPUT!J52-MACRO_INPUT!R29 -> 783611.2842 | E44: =D44/$D$51 -> 0.005323299611 | F44: =ROUND((+MACRO_INPUT!$U$16-779145)*E44,2) -> 741416.09 | G44: =D44-F44 -> 42195.19421 | H44: 5274.399277 | I44: 1002.330303 | J44: =MACRO_INPUT!F126 -> 2797 | K44: =ROUND(H44/J44,2) -> 1.89 | L44: =ROUND(I44/J44,2) -> 0.36 | M44: =K44+L44 -> 2.25
A45: Total | B45: Total Direct Pumping | C45: - | D45: =SUM(D28:D33)+D36+D37+D41+D42+D43+D44 -> 22070617.23 | E45: 0.1499321289 | F45: 20882178.51 | G45: 1188438.717 | H45: 148554.8396 | I45: 28230.89598 | J45: - | K45: - | L45: - | M45: -
A46: Subtotal | B46: Subtotal | C46: - | D46: =SUM(D11,D14,D27,D45) -> 116956441.8 | E46: =ROUND(SUM(E11+E14+E27+E45),8) -> 0.79451916 | F46: =SUM(F11,F14,F27,F45) -> 110658676.8 | G46: =SUM(G11,G14,G27,G45) -> 6297765.04 | H46: 787220.63 | I46: 149600.9405 | J46: - | K46: - | L46: - | M46: -
A47: Other Costs | B47: Deferred Interest Capitalized | C47: - | D47: =+MACRO_INPUT!R18 -> 21277763 | E47: =D47/$D$51 -> 0.1445460393 | F47: =ROUND((+MACRO_INPUT!$U$16-779145)*E47,2) -> 20132017.21 | G47: =D47-F47 -> 1145745.79 | H47: 143218.2237 | I47: 27216.74224 | J47: - | K47: - | L47: - | M47: -
A48: Other Costs | B48: Programmatic EIS Capitalized | C48: - | D48: =+MACRO_INPUT!R19 -> 1591067.959 | E48: =D48/$D$51 -> 0.0108085879 | F48: =ROUND((+MACRO_INPUT!$U$16-779145)*E48,2) -> 1505393.57 | G48: =D48-F48 -> 85674.38862 | H48: 10709.29858 | I48: 2035.161527 | J48: - | K48: - | L48: - | M48: -
A49: Other Costs | B49: All others | C49: - | D49: =+MACRO_INPUT!R20 -> 7378781.395 | E49: =D49/$D$51 -> 0.05012621043 | F49: =ROUND((+MACRO_INPUT!$U$16-779145)*E49,2) -> 6981455.43 | G49: =D49-F49 -> 397325.965 | H49: 49665.74562 | I49: 9438.322591 | J49: - | K49: - | L49: - | M49: -
A50: Total | B50: Total Other Costs | C50: - | D50: =SUM(D47:D49) -> 30247612.35 | E50: 0.2054808377 | F50: 28618866.21 | G50: 1628746.144 | H50: 203593.268 | I50: 38690.22635 | J50: =+MACRO_INPUT!D165 -> 331768.7143 | K50: =ROUND(H50/J50,2) -> 0.61 | L50: =ROUND(I50/J50,2) -> 0.12 | M50: =K50+L50 -> 0.73
A51: Grand Total | B51: Total | C51: - | D51: =D46+D50 -> 147204054.2 | E51: 0.9999999977 | F51: 139277543 | G51: 7926511.184 | H51: 990813.898 | I51: 188291.1668 | J51: - | K51: - | L51: - | M51: -
B243: 0.02420749161

Sheet Footnotes
A1: =INFORMATION!A1 -> Special Rates 2023 Sch S-2.Z25.XLSM
A2: =INFORMATION!$A$2 -> 01/05/2023
A3: CENTRAL VALLEY PROJECT
A4: SCHEDULE OF M&I UNPAID CAPITAL COSTS BY COMPONENT AND/OR FACILITY
A5: =+OUTPUT!A6 -> AS OF SEPTEMBER 30, 2021
A6: =+OUTPUT!A7 -> 2023 SPECIAL WATER RATES
A8: Footnotes:
A10: 1/
A11: Refer to M&I Water Rates, Schedule A-2Ba. Total Allocation of Construction Repayment is being reduced by the Assignment
A13: Repayment as of 9/30/21 (Column C of A-2Ba) | B13: Construction Repayment per Assignment | C13: Adjusted M&I Construction Repayment
A14: =MACRO_INPUT!U16 -> 140056688 | B14: -779145 | C14: =SUM(A14:B14) -> 139277543
A16: 2/
A17: Annual Interest of 0.023755 is from M&I Schedule A-13.
A19: 3/
A20: Contra Costa WD's conveyance costs are recovered through a repayment contract.
A22: 4/
A23: Cross Valley Canal contractors are charged for PUE construction component only. Therefore their deliveries are not included in determining the "Construction only" rate.
A25: 5/
A26: Suballocation of Jones Pumping Plant costs:
A28: Facility/Contractor <Ref> | B28: Historical & Projected Deliveries (1981-2030) <Sch A-7> | C28: Ratio | D28: M&I Construction Costs at 9/30/2020 | E28: Project Use Energy: BOR | F28: Project Use Energy: DOE | G28: Project Use Energy: Total
A29: Jones Pumping Plant: Delta-Mendota Exchange | B29: =+MACRO_INPUT!X17 -> 2496684.902 | C29: =ROUND(B29/B31,9) -> 0.334984801 | D29: =+D37*C29 -> 1468825.98 | E29: =JonesPumpingPlantConveyancePumping[less: BOR PUE (M&I Sch A-5)]*C29 -> 1821434.833 | F29: =JonesPumpingPlantConveyancePumping[less: DOE PUE (M&I Sch A-5)]*C29 -> 1770796.564 | G29: =SUM(E29:F29) -> 3592231.397
A30: Jones Pumping Plant: All Other Contractors | B30: =+MACRO_INPUT!X16 -> 4956444 | C30: =ROUND(B30/B31,9) -> 0.665015199 | D30: =+D37*C30 -> 2915928.12 | E30: =JonesPumpingPlantConveyancePumping[less: BOR PUE (M&I Sch A-5)]*C30 -> 3615930.765 | F30: =JonesPumpingPlantConveyancePumping[less: DOE PUE (M&I Sch A-5)]*C30 -> 3515403.165 | G30: =SUM(E30:F30) -> 7131333.93
A31: Jones Pumping Plant: Total a/ | B31: =SUM(B29:B30) -> 7453128.902 | C31: 1 | D31: 4384754.1 | E31: 5437365.598 | F31: 5286199.73 | G31: 10723565.33
A33: a/
A34: Jones Pumping Plant - Conveyance Pumping:
A36: Total Construction Cost (M&I Sch A-5) | B36: less: BOR PUE (M&I Sch A-5) | C36: less: DOE PUE (M&I Sch A-5) | D36: Capital Allocation
A37: =+MACRO_INPUT!J30 -> 15108319.43 | B37: =+MACRO_INPUT!K30 -> 5437365.598 | C37: =+MACRO_INPUT!L30 -> 5286199.73 | D37: =A37-B37-C37 -> 4384754.1
A39: 6/
A40: FY 2023 projected deliveries include Friant Dam and Friant-Kern Canal.
A42: 7/
A43: FY 2023 projected deliveries for Jones PP do not include Delta Mendota Exchange contractors' deliveries.
